Cogmind - Beta 9.3 @@@ ROGUE MODE // 2019.12.18 @ 14:00:56 // Winter2019/RPGLIKE Player: Judas Result: Destroyed by G-47 Trooper with Particle Gun Performance ------------- Evolutions (2) 1000 Regions Visited (3) 600 Robots Destroyed (28) 140 Value Destroyed (775) 775 Prototype IDs (3) 60 Alien Tech Used (0) 0 Bonus (0) 0 TOTAL SCORE: 2575 Bonus ------- None Cogmind --------- Core Integrity 0/850 Matter 300/300 Energy 280/280 System Corruption 0% Temperature Cool (257) Movement Hovering (46) Location -8/Materials Parts ------- > --- POWER (1) -------- Heavy Ion Engine > --- PROPULSION (2) --- Aerolev Unit Aerolev Unit > --- UTILITY (2) ------ Visual Processing Unit Hacking Suite > --- WEAPON (2) ------- Enhanced Autogun Enhanced Autogun > --- INVENTORY (3) ---- EM Shotgun Heavy Assault Rifle Peak State ------------ > --- POWER ------------ Heavy Ion Engine > --- PROPULSION ------- Aerolev Unit Aerolev Unit > --- UTILITY ---------- Visual Processing Unit Hacking Suite > --- WEAPON ----------- Enhanced Autogun Enhanced Autogun > --- INVENTORY -------- EM Shotgun Heavy Assault Rifle [Rating: 24] Favorites ----------- Power Light Ion Engine Engine Light Ion Engine Propulsion Hover Unit Wheel Wheel Hover Unit Hover Unit Flight Unit Cesium-ion Thruster Utility Hacking Suite Device Heat Sink Processor Visual Processing Unit Hackware Hacking Suite Weapon EM Pulse Gun Energy Gun EM Pulse Gun Ballistic Gun Light Assault Rifle Build | -11 -10 -9 -8 ------- Run | Scr Mat Mat Mat Slots Evolved 3 | 3 . . . Power . | . . . . Propulsion 1 | 1 . . . Utility 1 | 1 . . . Weapon 1 | 1 . . . Parts Attached 21 | 5 4 6 6 Power 3 | 1 . 1 1 Engine 3 | 1 . 1 1 Core . | . . . . Reactor . | . . . . Propulsion 7 | 2 2 . 3 Treads . | . . . . Leg . | . . . . Wheel 2 | 2 . . . Hover 4 | . 2 . 2 Flight 1 | . . . 1 Utility 3 | . 1 2 . Device 1 | . 1 . . Storage . | . . . . Processor 1 | . . 1 . Hackware 1 | . . 1 . Protection . | . . . . Artifact . | . . . . Weapon 8 | 2 1 3 2 Energy Gun 5 | 2 1 2 . Energy Cannon . | . . . . Ballistic Gun 3 | . . 1 2 Ballistic Cannon . | . . . . Launcher . | . . . . Special Weapon . | . . . . Impact Weapon . | . . . . Slashing Weapon . | . . . . Piercing Weapon . | . . . . Special Melee Weapon . | . . . . Unidentified Prototypes 3 | . . . 3 Parts Lost 2 | . . 2 . Power . | . . . . Propulsion 1 | . . 1 . Utility . | . . . . Weapon 1 | . . 1 . Highest Loss Streak 1 | . . 1 . Average Slot Usage (%) 89 | . 78 96 95 Engine 14 | . 14 14 14 Wheel 6 | . 16 . . Hover 17 | . 11 26 17 Flight 1 | . . . 6 Device 3 | . 7 1 . Processor 7 | . . 12 14 Hackware 8 | . . 13 14 Energy Gun 21 | . 28 20 11 Ballistic Gun 6 | . . 6 15 Naked Turns . | . . . . Heaviest Build 14 | 6 8 11 14 Greatest Support 37 | 20 20 12 37 Greatest Overweight (x) 1 | . 1 1 1 Average Overweight (x) . | . . . . Largest Inventory Capacity 3 | 2 2 3 3 Average Capacity 2 | 2 2 2 3 Most Carried 3 | . 2 3 3 Average Carried 1 | . 1 1 2 Final Capacity 3 | 2 2 3 3 Final Carried 3 | . 2 3 2 Class Distribution -------------------- 100% | Mutant Dominant Class ---------------- Mutant | -10/Materials Mutant | -9/Materials Mutant | -8/Materials Resources | -11 -10 -9 -8 ----------- Run | Scr Mat Mat Mat Matter Collected 561 | 250 35 62 214 Remotely . | . . . . Salvage Created 1271 | . 329 406 536 Parts 65 | . 26 23 16 Haulers Intercepted 3 | . . 1 2 Recyclers Shooed . | . . . . Parts Field Recycled . | . . . . Retrieved Matter . | . . . . Parts Self-Destructed . | . . . . Prevented . | . . . . Kills | -11 -10 -9 -8 ------- Run | Scr Mat Mat Mat Combat Hostiles Destroyed 20 | . 8 7 5 Guns 20 | . 8 7 5 Classes Destroyed 8 | . 4 3 1 Worker 2 | . . . 2 Tunneler 1 | . 1 . . Hauler 3 | . . 1 2 Operator 1 | . . 1 . Watcher 1 | . 1 . . Swarmer 5 | . 5 . . Grunt 12 | . 3 5 4 Sentry 3 | . . 2 1 Best Kill Streak 4 | . 4 3 4 Combat Bots Only 3 | . 3 3 3 Max Kills in Single Turn 1 | . 1 1 1 Gunslinging . | . . . . Exploded . | . . . . Melee . | . . . . Uniques/NPCs Destroyed . | . . . . Combat | -11 -10 -9 -8 -------- Run | Scr Mat Mat Mat Damage Taken 1418 | . 730 383 305 Core 1150 | . 594 307 249 Absorbed by Shields . | . . . . Redirected to Core 919 | . 449 265 205 Core Remaining (%) 53 | 100 33 28 . Volleys Fired 120 | . 51 33 36 Largest 2 | . 2 2 2 Hottest 90 | . 90 90 70 Shots Fired 211 | . 86 60 65 Gun 211 | . 86 60 65 Cannon . | . . . . Launcher . | . . . . Special . | . . . . Kinetic 67 | . . 17 50 Thermal 63 | . 51 12 . Explosive . | . . . . Electromagnetic 81 | . 35 31 15 Robot Hit Streak 24 | . 8 11 24 Robot Miss Streak 4 | . 3 4 2 Penetration Max . | . . . . Secondary Targets 1 | . . . 1 Max Gunslinging Chain 1 | . . . 1 Shots Hit Robots 140 | . 41 44 55 Core Hits 56 | . 18 18 20 Critical Hits . | . . . . Critical Kills . | . . . . Critical Parts Destroyed . | . . . . Melee Attacks . | . . . . Impact . | . . . . Slashing . | . . . . Piercing . | . . . . Sneak Attacks . | . . . . Combat Hostiles . | . . . . Follow-up Attacks . | . . . . Damage Inflicted 2020 | . 546 501 973 Guns 1852 | . 466 501 885 Cannons . | . . . . Explosions 167 | . 79 . 88 Melee . | . . . . Ramming 1 | . 1 . . Kinetic 790 | . . 95 695 Thermal 519 | . 330 101 88 Explosive . | . . . . Electromagnetic 710 | . 215 305 190 Impact . | . . . . Slashing . | . . . . Piercing . | . . . . Highest Corruption . | . . . . Average Corruption . | . . . . Corruption Purged . | . . . . Overload Shots . | . . . . Overflow Damage . | . . . . Projectiles . | . . . . Explosions . | . . . . Melee . | . . . . Knockbacks . | . . . . Impact . | . . . . Kinetic . | . . . . Secondary . | . . . . Self-Inflicted Damage 156 | . 156 . . Shots 3 | . 3 . . Rammed 1 | . 1 . . Targets Rammed 1 | . 1 . . Kicked . | . . . . Crushed . | . . . . Highest Temperature 248 | . 226 242 248 Average Temperature 82 | . 81 100 62 Received Heat Transfer 462 | . 153 156 153 Effects 1 | . . 1 . Energy Bleed 1 | . . 1 . Siege Activations . | . . . . Robots Corrupted . | . . . . Combat Hostiles . | . . . . Parts Fried 1 | . . 1 . Impact Corruptions . | . . . . Robots Melted . | . . . . Combat Hostiles . | . . . . Parts Melted . | . . . . Heat Transferred 1139 | . 743 296 100 Parts Sabotaged . | . . . . Parts Stolen . | . . . . Parts Stripped . | . . . . Power Chain Reactions 2 | . 1 . 1 Missiles Intercepted . | . . . . Alert | -11 -10 -9 -8 ------- Run | Scr Mat Mat Mat Peak Influence 358 | . 228 358 182 Average Influence 131 | . 106 217 73 Maximum Alert Level 1 | . 1 1 . Low Security (%) 80 | 100 93 50 100 Level 1 19 | . 6 49 . Level 2 . | . . . . Level 3 . | . . . . Level 4 . | . . . . Level 5 . | . . . . High Security . | . . . . Max Security . | . . . . Squads Dispatched 5 | . . 3 2 Investigation 1 | . . . 1 Extermination . | . . . . Reinforcement 4 | . . 3 1 Assault . | . . . . Garrison . | . . . . Intercept . | . . . . Construction Impeded . | . . . . Haulers Reinforced . | . . . . Stealth | -11 -10 -9 -8 --------- Run | Scr Mat Mat Mat Distress Signals 3 | . 2 1 . Communications Jammed . | . . . . Distress Signals . | . . . . Times Spotted 42 | . 16 13 13 Peak Tracking Total 6 | . 4 3 6 Tactical Retreats 4 | . 2 1 1 Traps | -11 -10 -9 -8 ------- Run | Scr Mat Mat Mat Traps Triggered 1 | . 1 . . Indirectly . | . . . . Trap Hack Attempts . | . . . . Triggered . | . . . . Disarmed . | . . . . Reprogrammed . | . . . . Reused . | . . . . Traps Extracted . | . . . . Installed . | . . . . Triggered . | . . . . Machines | -11 -10 -9 -8 ---------- Run | Scr Mat Mat Mat Machines Disabled 7 | . 7 . . Max in Single Turn 2 | . 2 . . Machines Sabotaged . | . . . . Garrisons Compromised . | . . . . Overloaded Fab Kills . | . . . . Fab Network Shutdowns . | . . . . Hacking | -11 -10 -9 -8 --------- Run | Scr Mat Mat Mat Machines Accessed 6 | . 4 . 2 Terminals 6 | . 4 . 2 Fabricators . | . . . . Repair Stations . | . . . . Recycling Units . | . . . . Scanalyzers . | . . . . Garrison Access . | . . . . Total Hacks 18 | . 13 . 5 Successful 9 | . 6 . 3 Failed 9 | . 7 . 2 Catastrophic 4 | . 4 . . Database Lockouts . | . . . . Manual 18 | . 13 . 5 Terminals 18 | . 13 . 5 Fabricators . | . . . . Repair Stations . | . . . . Recycling Units . | . . . . Scanalyzers . | . . . . Garrison Access . | . . . . Terminal Hacks 3 | . 1 . 2 Unreport Threat 3 | . 1 . 2 Fabricator Hacks . | . . . . Repair Station Hacks . | . . . . Recycling Unit Hacks . | . . . . Scanalyzer . | . . . . Garrison Access Hacks . | . . . . Unauthorized Hacks 16 | . 13 . 3 Terminals 6 | . 5 . 1 Botnet 4 | . 3 . 1 Detonate 2 | . 2 . . Fabricators . | . . . . Repair Stations . | . . . . Recycling Units . | . . . . Scanalyzers . | . . . . Garrison Access . | . . . . Data Cores Recovered . | . . . . Used . | . . . . Hacking Detections 6 | . 4 . 2 Full Trace Events 3 | . 2 . 1 Feedback Events . | . . . . Feedback Blocked . | . . . . Robot Schematics Acquired . | . . . . Robots Built . | . . . . Matter . | . . . . Time . | . . . . Total Robot Build Rating . | . . . . Part Schematics Acquired . | . . . . Parts Built . | . . . . Matter . | . . . . Time . | . . . . Total Part Build Rating . | . . . . Parts Repaired . | . . . . Time . | . . . . Parts Recycled . | . . . . Recycled Matter . | . . . . Retrieved Matter . | . . . . Retrieved Components . | . . . . Parts Scanalyzed . | . . . . Part Schematics Acquired . | . . . . Parts Damaged . | . . . . Bothacking | -11 -10 -9 -8 ------------ Run | Scr Mat Mat Mat Used RIF Installer . | . . . . Robots Hacked . | . . . . Non-combat . | . . . . Combat . | . . . . Robot Hacks Applied . | . . . . Relay Couplers Released . | . . . . Robots Rewired . | . . . . Allies Hacked . | . . . . Hacks Repelled . | . . . . Allies | -11 -10 -9 -8 -------- Run | Scr Mat Mat Mat Total Allies . | . . . . Largest Group . | . . . . Highest-Rated Group . | . . . . Highest-Rated Ally . | . . . . Total Orders . | . . . . Ally Attacks . | . . . . Total Damage . | . . . . Kills . | . . . . Allies Corrupted . | . . . . Allies Melted . | . . . . Intel | -11 -10 -9 -8 ------- Run | Scr Mat Mat Mat Robot Analysis Total . | . . . . Derelict Logs Recovered . | . . . . Drone Launches . | . . . . Drone Recoveries . | . . . . Exploration | -11 -10 -9 -8 ------------- Run | Scr Mat Mat Mat Turns Passed 857 | 41 332 291 193 Spaces Moved 618 | 43 246 165 164 Core 1 | 1 . . . Treads . | . . . . Legs . | . . . . Wheels 200 | 42 158 . . Hover 310 | . 88 165 57 Flight 107 | . . . 107 Fastest Speed 40 | 50 56 56 40 Average Speed 66 | 79 71 62 59 Slowest Speed 120 | 80 120 120 120 Overloaded Moves . | . . . . Propulsion Burnouts . | . . . . Robots Hopped . | . . . . Cave-ins Triggered . | . . . . Exploration Rate (%) 22 | 3 38 22 27 Regions Visited 3 Branch Regions . Pre-discovered Areas . | . . . . Known Exits Taken . | . . . . Unknown Exits Taken 3 | 1 1 1 . Scrap Searched . | . . . . Spaces Dug . | . . . . Terrain Destroyed 99 | . 93 . 6 Melee . | . . . . Projectile . | . . . . AOE 99 | . 93 . 6 Actions | -11 -10 -9 -8 --------- Run | Scr Mat Mat Mat Total 872 | 47 315 295 215 Wait 85 | . 7 76 2 Move 615 | 42 245 164 164 Hop . | . . . . Pick Up 4 | . 2 1 1 Fast Attach 16 | 5 3 3 5 Attach 1 | . . 1 . Detach . | . . . . Swap 4 | . 1 2 1 Drop 12 | . 3 3 6 Fire 120 | . 51 33 36 Melee . | . . . . Ram 1 | . 1 . . Kick . | . . . . Crush . | . . . . Escape Stasis . | . . . . Rewire . | . . . . Trap . | . . . . Miscellaneous 14 | . 2 12 . Route ------- -11/Scrapyard -10/Materials -9/Materials -8/Materials History --------- Turn | Location | Event 1 | -11/Scrapyard | Upgraded with Propulsion slot (x1) 1 | -11/Scrapyard | Upgraded with Utility slot (x1) 1 | -11/Scrapyard | Upgraded with Weapon slot (x1) 13 | -11/Scrapyard | Discovered new exit (range 16) 42 | -11/Scrapyard | Entered Materials 281 | -10/Materials | Core integrity fell below 50% 314 | -10/Materials | Build established: Mutant 326 | -10/Materials | Discovered new exit (range 14) 352 | -10/Materials | Reached level 2 374 | -10/Materials | Entered another Materials area 375 | -9/Materials | Core integrity fell below 50% 376 | -9/Materials | Reached level 3 577 | -9/Materials | Discovered new exit (range 3) 618 | -9/Materials | Core integrity fell below 20% 665 | -9/Materials | Entered another Materials area 666 | -8/Materials | Core integrity fell below 50% 667 | -8/Materials | Reached level 4 821 | -8/Materials | Core integrity fell below 20% 839 | -8/Materials | Reached level 5 858 | -8/Materials | Destroyed by G-47 Trooper with Particle Gun Last Messages --------------- 00815_ U-05 Engineer lays Concrete. 00819_ U-05 Engineer builds a Wall. 00822_ Processing Tank disabled. 00823_ U-05 Engineer lays Concrete. 00824_ U-05 Engineer builds a Wall. 00832_ G-47 Trooper destroyed. 00836_ G-47 Trooper IFF system glitched. 00837_ Destroyed Lgt. Nuclear Core. 00839_ Reached level 5. 00839_ G-47 Trooper destroyed. 00839_ Switching to secondary target: G-50 Soldier. 00840_ Acquired 52 matter. 00842_ Acquired 6 matter. 00848_ Destroyed Particle Gun. 00849_ Acquired 6 matter. 00852_ G-47 Trooper destroyed. 00853_ Acquired 2 matter. 00854_ R-06 Scavenger collects Aluminum Leg. 00854_ Acquired 4 matter. 00856_ Acquired 6 matter. Map ----- +----------------------------------------------------+ | ?????????????????????????????????????? | | ?????????????????????????????????????? | | ?????????????????????????????????????? | | ?????????????????????????????????????? | | ?????????????????????????????????????? | | ?????????????????????????????????????? | | ?????????????????????????????????????? | | ?????????????????????????????????????? | | ?????????????????????????????????????? | | ?????????????????????????????????????? | | ?????????????????????????????????????? | | ?????????????? ??????????????????????? | | ?????????????#* ????????????????????? | | ?????????????# ????????????????????? | | ?????????????# ????????????????????? | | ?????????????# ????????????????????? | | ?????????????# """?#???????????????? | | ?????????????# ! #???????????????? | | ?????????????# " " ????????????????? | | ?????????????# "R"?????????????????? | | ?????????????? """?????????????????? | | ??????????????? ??????????????????? | | ??????????????###+###????############# | | ??????######### ######==*!=! [ | | ?????? """"" #= ###"##= =%=* | | ?????? ""T""@gru w%o %+!"""*""" """ | | ????# *#%g ] ### ## """!""" """ | | ????# ! # ### ## """ """ """ | | ????#############+###?# ## | | ??????????????? ??# ###+#########? | | ????????????? ### ### ########## | | ???????????# ## + | | ???????????# ""## ######## | | ???????????# """## ???????# """ | | ???????????# """## ???????# """ | | ???????????# """#? ???????# """ | | ???????????# """#? ???????# | | ???????????# ??? ???????# [[[ | | ???????????######????? ???????# [[ | | ?????????????????????? ???????# [[ | | ?????????????????????? !???????# | | ?????????????????????? ???????# | | ?????????????????????? ]???????# ! | | ????????????????????????????????###+## | | ?????????????????????????????????# | | ?????????????????????????????????# # | | ?????????????????????????????????# # | | ?????????????????????????????????# # | | ?????????????????????????????????# # | | ?????????????????????????????????# # | +----------------------------------------------------+ Best States ------------- Heat Dissipation 35 Energy Generation 14 Energy Capacity 280 Matter Stores 300 Matter Capacity 300 Sight Range 18 Robot Scan Range 8 Terrain Scan Density 10 Evasion (%) 62 Offensive Hacking 15 Item Schematics ----------------- None Robot Schematics ------------------ None Fabricated ------------ Nothing Alien Tech Used ----------------- None Achievements -------------- None Challenges ------------ None RPGLIKE | -11 -10 -9 -8 --------- Run | Scr Mat Mat Mat Levels Raised 4 | . 1 1 2 XP Earned 9150 | 3000 1545 2435 2170 XP Spent 6575 | 2660 165 3150 600 Upgrades 23 | 11 3 6 3 Propulsion Slot 1 | 1 . . . Utility Slot 1 | 1 . . . Weapon Slot 1 | 1 . . . Core Integrity 5 | 2 3 . . Mass Support 3 | . . . 3 Inventory Capacity 3 | 2 . 1 . Sensor Range 4 | 4 . . . Ranged Accuracy 4 | . . 4 . Hack Attack % 1 | . . 1 . Protomatter Created 98 | . 10 88 . Integrity Restored 294 | . 30 264 . Core 294 | . 30 264 . Protomatter Decayed . | . . . . Game ------ Seed WeldingFlakRailgun Manual? 0 Play Time 00:23:19 Cumulative 27.9 hours Start 2019.12.18 @ 13:37:35 End 2019.12.18 @ 14:00:56 Sessions 1 Manual Loads 0 Difficulty Rogue Special Mode Winter2019/RPGLIKE Game No. 53 Rogue 53 Adventurer 0 Explorer 0 Win Type - Total 0 Types 0/0/0/0/0/0/0 Lore% 21 Gallery% 27 Achievement% 23 Wizard Run 0 Options --------- ASCII 0 Keyboard 0 Movement Mouse Keybinds 0 Fullscreen 1 Font 18/SmallcapsGlow Map View 76x50 Tactical HUD 1 Map Filters NONE Filters NONE Steam 1 RUN: ae19bf45-0ca7-4ba4-aa09-576330cb3b88